Cogmind - Beta 15 @@@ ROGUE MODE // 2025.06.05 @ 20:40:46 Player: BionicBot Result: Destroyed by Enhanced Grunt with Neutron Cannon Performance ------------- Evolutions (3) 1500 Regions Visited (9) 1800 Robots Destroyed (162) 810 Value Destroyed (4752) 4752 Prototype IDs (216) 4320 Alien Tech Used (1) 200 Bonus (3440) 3440 TOTAL SCORE: 16822 Bonus ------- Follower Combat Kills 178 Met Data Miner 300 Used Data Conduit 3000 Friendly Fire -38 Cogmind --------- Core Integrity 0/700 Matter 158/300 Energy 16/240 System Corruption 0% Temperature Cool (0) Movement Core (1500) Ox29 Location -7/Data Miner Parts ------- > --- POWER (1) -------- Nuclear Core > --- PROPULSION (4) --- (None) > --- UTILITY (6) ------ Huge Storage Unit Improved Signal Interpreter Target Analyzer > --- WEAPON (3) ------- Minigun > --- INVENTORY (25) --- Light Nuclear Core Reinforced Deuterium Engine Heat Sink Medium Battery (150) High-capacity Matter Pod (200) Structural Scanner Seismic Detector Recoil Stabilizer Light Armor Plating Light Armor Plating Improved Light Armor Plating High-powered Tractor Beam Recalibrator Light EM Pulse Cannon Plasma Cutter Katana Peak State ------------ > --- POWER ------------ Heavy Ion Engine > --- PROPULSION ------- Improved Treads Improved Treads Improved Treads Medium Treads > --- UTILITY ---------- Huge Storage Unit Improved Sensor Array Improved Signal Interpreter Improved Targeting Computer Target Analyzer Hardened Light Armor Plating > --- WEAPON ----------- Improved Assault Rifle Minigun Minigun > --- INVENTORY -------- Nuclear Core Light Nuclear Core Improved Treads Heat Sink Medium Battery High-capacity Matter Pod Structural Scanner Seismic Detector Recoil Stabilizer Light Armor Plating Light Armor Plating Hardened Light Armor Plating Improved Light Armor Plating Improved Light Armor Plating High-powered Tractor Beam Recalibrator Light EM Pulse Cannon Minigun Minigun Grenade Launcher Grenade Launcher Improved Grenade Launcher Plasma Cutter Katana [Rating: 41] Favorites ----------- Power Heavy Ion Engine Engine Heavy Ion Engine Power Core Light Nuclear Core Propulsion Improved Treads Treads Improved Treads Wheel Wheel Utility Huge Storage Unit Device Improved Sensor Array Storage Huge Storage Unit Processor Improved Targeting Computer Protection Improved Light Armor Plating Weapon Minigun Energy Gun Small Laser Energy Cannon Light EM Pulse Cannon Ballistic Gun Minigun Launcher Improved Grenade Launcher Impact Weapon Hammer Slashing Weapon Katana Build | -11 -10 -10 -9 -9 -8 -7 -7 -7 -7 ------- Run | Yrd Mat Min Mat Sto Mat Fac Low Low Dat Slots Evolved 6 | . . . 2 . 2 2 . . . Power . | . . . . . . . . . . Propulsion 2 | . . . 2 . . . . . . Utility 3 | . . . . . 2 1 . . . Weapon 1 | . . . . . . 1 . . . Parts Attached 90 | 8 13 1 20 13 13 3 7 9 3 Power 11 | 2 2 1 1 2 1 . 1 . 1 Engine 9 | 2 2 . 1 2 1 . 1 . . Core 2 | . . 1 . . . . . . 1 Reactor . | . . . . . . . . . . Propulsion 24 | 2 2 . 10 4 2 . 1 3 . Treads 23 | 2 2 . 10 4 2 . 1 2 . Leg . | . . . . . . . . . . Wheel 1 | . . . . . . . . 1 . Hover . | . . . . . . . . . . Flight . | . . . . . . . . . . Utility 29 | 2 5 . 6 . 7 2 3 3 1 Device 10 | 1 2 . 2 . 2 1 1 1 . Storage 5 | 1 3 . 1 . . . . . . Processor 3 | . . . . . 1 1 1 . . Hackware . | . . . . . . . . . . Protection 11 | . . . 3 . 4 . 1 2 1 Artifact . | . . . . . . . . . . Weapon 26 | 2 4 . 3 7 3 1 2 3 1 Energy Gun 1 | 1 . . . . . . . . . Energy Cannon 1 | . . . . . . . . 1 . Ballistic Gun 19 | 1 4 . 2 4 3 1 1 2 1 Ballistic Cannon . | . . . . . . . . . . Launcher 3 | . . . . 2 . . 1 . . Special Weapon . | . . . . . . . . . . Impact Weapon 1 | . . . 1 . . . . . . Slashing Weapon 1 | . . . . 1 . . . . . Piercing Weapon . | . . . . . . . . . . Special Melee Weapon . | . . . . . . . . . . Unidentified Prototypes 4 | . . . . 3 . . 1 . . Parts Lost 40 | . . . 7 1 5 . 2 11 14 Power 2 | . . . . . . . 1 . 1 Propulsion 14 | . . . 3 1 2 . 1 6 1 Utility 12 | . . . 2 . 2 . . 3 5 Weapon 12 | . . . 2 . 1 . . 2 7 Highest Loss Streak 14 | . . . 3 1 2 . 1 6 14 To Critical Strikes . | . . . . . . . . . . Average Backups 20 | 1 10 15 22 24 24 22 22 22 23 Power 1 | . 1 1 1 . 1 1 1 1 3 Propulsion 2 | . 1 2 3 3 3 2 1 1 . Utility 11 | . 6 8 11 12 12 12 12 12 12 Weapon 5 | . 1 3 4 5 6 6 6 6 6 Tool/Special . | . . . . . . . . . . Unused Backups 31 | . 3 1 5 7 5 . . . 10 Power 5 | . . . 1 2 . . . . 2 Propulsion 4 | . 1 . 1 2 . . . . . Utility 17 | . 2 1 1 1 5 . . . 7 Weapon 4 | . . . 2 2 . . . . . Tool/Special 1 | . . . . . . . . . 1 Average Slot Usage (%) 97 | . 99 100 99 98 99 99 98 90 74 Engine 8 | . 14 8 6 11 9 7 6 7 6 Treads 31 | . 27 28 43 43 35 30 29 18 . Device 5 | . 14 14 4 . . 6 6 4 . Storage 9 | . 14 14 11 11 9 7 7 7 7 Processor 8 | . . . . . 8 15 16 21 21 Protection 8 | . . . 6 10 17 7 6 9 12 Ballistic Gun 20 | . 25 28 21 19 17 22 18 19 18 Peak Build Rating 41 | 7 11 13 20 24 30 35 39 41 35 Average Rating 25 | 4 9 11 17 20 28 34 36 36 33 On Entrance 21 | . 7 11 13 19 24 29 35 38 35 Naked Turns . | . . . . . . . . . . Heaviest Build 111 | 14 93 33 100 101 108 104 106 110 111 Greatest Support 97 | 40 40 40 89 92 92 92 92 97 10 Greatest Overweight (x) 35 | . 2 . 1 1 1 1 2 35 11 Average Overweight (x) 1 | . . . . 1 1 1 1 3 10 Largest Inventory Capacity 25 | 8 25 15 25 25 25 25 25 25 25 Average Capacity 22 | 7 14 15 24 25 25 25 25 25 25 Most Carried 25 | 2 15 15 25 25 25 23 25 25 24 Average Carried 21 | 1 10 14 22 24 24 22 22 22 23 Final Capacity 25 | 8 15 15 25 25 25 25 25 25 25 Final Carried 25 | 2 15 15 25 25 24 22 23 24 16 Class Distribution -------------------- 58% | Mutant 21% | Gunner 11% | Skirmisher 7% | Scavenger-Mutant Dominant Class ---------------- Mutant | -10/Materials Mutant | -10/Mines Mutant | -9/Materials Mutant | -9/Storage Mutant | -8/Materials Skirmisher | -7/Factory Skirmisher | -7/Lower Caves Gunner | -7/Lower Caves Gunner | -7/Data Miner Resources | -11 -10 -10 -9 -9 -8 -7 -7 -7 -7 ----------- Run | Yrd Mat Min Mat Sto Mat Fac Low Low Dat Matter Collected 5516 | 255 802 377 948 836 802 62 610 824 . Remotely . | . . . . . . . . . . Salvage Created 6045 | 93 758 128 1358 1157 1544 62 274 615 56 Parts 340 | 4 45 11 99 65 82 3 16 15 . Haulers Intercepted 9 | . 2 . 2 5 . . . . . Recyclers Shooed 8 | . 2 1 1 1 3 . . . . Parts Field Recycled . | . . . . . . . . . . Retrieved Matter . | . . . . . . . . . . Parts Self-Destructed 26 | . . . . . . . 14 12 . Prevented 2 | . . . . . . . . 2 . Kills | -11 -10 -10 -9 -9 -8 -7 -7 -7 -7 ------- Run | Yrd Mat Min Mat Sto Mat Fac Low Low Dat Combat Hostiles Destroyed 126 | . 17 5 28 22 29 1 12 11 1 Guns 108 | . 17 5 28 16 28 1 4 8 1 Cannons 1 | . . . . . . . . 1 . AOE 16 | . . . . 6 1 . 8 1 . Classes Destroyed 12 | 2 6 . 1 1 1 . . 1 . Worker 7 | . 1 . 3 . 3 . . . . Tunneler 1 | 1 . . . . . . . . . Hauler 9 | . 2 . 2 5 . . . . . Recycler 6 | 1 1 . . 1 3 . . . . Mechanic 1 | . . . . 1 . . . . . Operator 1 | . 1 . . . . . . . . Watcher 10 | . 1 . 4 2 3 . . . . Swarmer 34 | . 8 3 6 3 7 . 7 . . Grunt 68 | . 9 2 15 18 15 . 4 5 . Brawler 2 | . . . . . . . . 2 . Duelist 5 | . . . . . 2 . 1 2 . Sentry 17 | . . . 7 2 5 1 . 2 . Enhanced Grunt 1 | . . . . . . . . . 1 Best Kill Streak 9 | 2 6 3 9 8 5 1 4 6 1 Combat Bots Only 7 | . 6 3 7 6 4 1 4 6 1 Max Kills in Single Turn 3 | 1 1 1 2 3 2 1 2 1 1 Gunslinging 1 | . . . . 1 . . . . . Exploded 3 | . . . . 3 1 . 2 1 . Melee . | . . . . . . . . . . Uniques/NPCs Destroyed . | . . . . . . . . . . Combat | -11 -10 -10 -9 -9 -8 -7 -7 -7 -7 -------- Run | Yrd Mat Min Mat Sto Mat Fac Low Low Dat Hostile Shots Fired 802 | . 113 18 148 91 155 9 44 180 44 Missed 241 | . 24 1 41 30 50 5 17 58 15 Hits 561 | . 89 17 107 61 105 4 27 122 29 Melee 25 | . . . . . 5 . 7 13 . Projectile 536 | . 89 17 107 61 100 4 20 109 29 Critical Strikes 20 | . 1 . 4 1 6 . 4 4 . Damage Taken 8186 | . 669 119 1294 867 1461 37 562 1833 1344 Core 1173 | . 96 28 96 55 190 . 104 298 306 Absorbed by Shields 340 | . 210 47 83 . . . . . . Regen/Repaired (Parts) 642 | . . . . 406 236 . . . . Core Remaining (%) 69 | 100 . 50 . 62 65 . . . . Volleys Fired 436 | 5 74 13 92 72 101 2 22 47 8 Largest 3 | 2 2 2 2 2 2 3 3 3 3 Hottest 106 | 60 60 46 46 60 48 73 96 75 106 Shots Fired 882 | 10 147 28 180 144 200 6 46 105 16 Gun 843 | 10 147 28 180 138 198 6 35 92 9 Cannon 11 | . . . . . . . . 9 2 Launcher 28 | . . . . 6 2 . 11 4 5 Special . | . . . . . . . . . . Kinetic 807 | 5 116 28 180 138 198 6 35 92 9 Thermal 36 | 5 31 . . . . . . . . Explosive 28 | . . . . 6 2 . 11 4 5 Electromagnetic 11 | . . . . . . . . 9 2 Robot Hit Streak 26 | 3 13 4 7 21 23 9 21 26 10 Robot Miss Streak 4 | 1 3 3 4 3 3 . 3 2 1 Penetration Max . | . . . . . . . . . . Secondary Targets 22 | . 4 . 4 8 . . . 6 . Max Gunslinging Chain 1 | . 1 . 1 1 . . . 1 . Shots Hit Robots 586 | 7 97 14 101 94 155 5 28 77 8 Core Hits 281 | 3 37 7 51 47 70 3 28 20 15 Critical Kills 6 | . . . 1 3 . . . 2 . Critical Parts Destroyed 10 | . . . 1 1 1 . 1 5 1 Critical Strikes 18 | . . . 2 4 1 . 1 9 1 Destroy 16 | . . . 2 4 1 . 1 7 1 Corrupt 2 | . . . . . . . . 2 . Melee Attacks 12 | . . . 3 3 5 . 1 . . Impact 4 | . . . 3 1 . . . . . Slashing 8 | . . . . 2 5 . 1 . . Piercing . | . . . . . . . . . . Sneak Attacks 1 | . . . . . 1 . . . . Combat Hostiles . | . . . . . . . . . . Follow-up Attacks . | . . . . . . . . . . Damage Inflicted 11393 | 83 1249 226 1708 2048 2694 91 1076 1430 788 Guns 8821 | 83 1241 209 1692 1475 2405 91 371 1136 118 Cannons 167 | . . . . . . . . 140 27 Explosions 2248 | . . . . 553 196 . 705 151 643 Melee 85 | . . . . . 85 . . . . Ramming 72 | . 8 17 16 20 8 . . 3 . Kinetic 8562 | 51 1014 209 1692 1475 2405 91 371 1136 118 Thermal 259 | 32 227 . . . . . . . . Explosive 2248 | . . . . 553 196 . 705 151 643 Electromagnetic 167 | . . . . . . . . 140 27 Impact . | . . . . . . . . . . Slashing 85 | . . . . . 85 . . . . Piercing . | . . . . . . . . . . Highest Corruption 3 | . 3 3 . . . . . . . Average Corruption 2 | . 2 3 . . . . . . . Corruption Purged . | . . . . . . . . . . Corruption Blocked . | . . . . . . . . . . Effects 49 | . 34 15 . . . . . . . Message Errors 9 | . 4 5 . . . . . . . Matter Fused 13 | . 10 3 . . . . . . . Heat Flow Errors 4 | . 4 . . . . . . . . Energy Discharges 3 | . 2 1 . . . . . . . Parts Fused 1 | . 1 . . . . . . . . Data Loss (minor) 13 | . 9 4 . . . . . . . Data Loss (major) 1 | . 1 . . . . . . . . Misfires 4 | . 2 2 . . . . . . . Weapon Failures 1 | . 1 . . . . . . . . Overload Shots . | . . . . . . . . . . Overflow Damage 85 | . . . . . 27 . 12 46 . Projectiles 11 | . . . . . . . . 11 . Explosions 49 | . . . . . 3 . 12 34 . Melee 25 | . . . . . 24 . . 1 . Knockbacks 1 | . . . 1 . . . . . . Impact 1 | . . . 1 . . . . . . Kinetic . | . . . . . . . . . . Secondary . | . . . . . . . . . . Self-Inflicted Damage 28 | . . . . . . . 28 . . Shots 1 | . . . . . . . 1 . . Rammed 13 | 1 2 4 1 1 3 . . 1 . Targets Rammed 14 | 1 2 4 1 2 3 . . 1 . Kicked . | . . . . . . . . . . Crushed 1 | . . . . 1 . . . . . Highest Temperature 312 | . 312 24 191 50 136 57 57 265 67 Average Temperature 50 | . 69 8 35 10 27 34 23 124 27 Received Heat Transfer 2468 | . 240 36 602 375 666 18 36 495 . Effects 6 | . . . . . . . . 6 . Interference 6 | . . . . . . . . 6 . Siege Activations . | . . . . . . . . . . Martial Activations . | . . . . . . . . . . Shielding Activations . | . . . . . . . . . . Robots Disrupted . | . . . . . . . . . . Combat Hostiles . | . . . . . . . . . . Robots Corrupted 1 | . . . . . . . . 1 . Combat Hostiles 1 | . . . . . . . . 1 . Parts Fried . | . . . . . . . . . . Impact Corruptions 1 | . . . . . . . . 1 . Robots Melted . | . . . . . . . . . . Combat Hostiles . | . . . . . . . . . . Parts Melted . | . . . . . . . . . . Heat Transferred 575 | 75 500 . . . . . . . . Parts Sabotaged . | . . . . . . . . . . Parts Stolen . | . . . . . . . . . . Parts Stripped . | . . . . . . . . . . Power Chain Reactions . | . . . . . . . . . . Alert | -11 -10 -10 -9 -9 -8 -7 -7 -7 -7 ------- Run | Yrd Mat Min Mat Sto Mat Fac Low Low Dat Maximum Alert Level 1 | . . . 1 1 . . . . . Low Security (%) 91 | 100 100 100 69 85 100 100 . . . Level 1 8 | . . . 30 14 . . . . . Level 2 . | . . . . . . . . . . Level 3 . | . . . . . . . . . . Level 4 . | . . . . . . . . . . Level 5 . | . . . . . . . . . . High Security . | . . . . . . . . . . Max Security . | . . . . . . . . . . Peak Influence 340 | 5 170 94 274 340 177 39 . . . Initial 114 | . . . . 114 65 39 . . . Average 71 | 1 22 23 151 115 46 12 . . . Influence Increases 3784 | 10 462 150 823 947 841 31 270 250 . Destroy 0b10 Robot/C 2620 | . 340 100 560 560 580 20 240 220 . Destroy 0b10 Robot/NC 180 | 10 30 . 45 50 45 . . . . Destroy Leader 528 | . 66 20 162 124 116 10 30 . . Allied During Kill 144 | . . . . 129 15 . . . . Successful Hack 77 | . 25 . 21 15 16 . . . . Disable Machine 90 | . . 15 15 45 15 . . . . Destroy Structure 40 | . 1 . 5 24 9 1 . . . Lose Combat Pursuer 105 | . . 15 15 . 45 . . 30 . Influence Decreases 3784 | 10 462 150 552 1064 907 119 215 285 20 Entered New Map 326 | . . . . 157 89 49 . 11 20 Time Decay 2533 | 10 322 150 482 577 523 70 195 204 . Lost Part 210 | . . . 70 10 40 . 20 70 . Lost Ally 80 | . . . . 20 60 . . . . Purge Threat 635 | . 140 . . 300 195 . . . . Squads Dispatched 13 | . 2 . 2 5 2 1 . 1 . Investigation 2 | . . . . 2 . . . . . Extermination 1 | . . . . . . 1 . . . Reinforcement 7 | . 2 . 2 1 2 . . . . Assault 3 | . . . . 2 . . . 1 . Garrison . | . . . . . . . . . . Intercept . | . . . . . . . . . . Searches Triggered . | . . . . . . . . . . Construction Impeded 2 | . . . 1 . 1 . . . . Haulers Reinforced . | . . . . . . . . . . Active Scanning Responses . | . . . . . . . . . . Cargo Convoy Interrupts . | . . . . . . . . . . Stealth | -11 -10 -10 -9 -9 -8 -7 -7 -7 -7 --------- Run | Yrd Mat Min Mat Sto Mat Fac Low Low Dat Distress Signals 12 | . 3 . 2 2 5 . . . . Communications Jammed . | . . . . . . . . . . Distress Signals . | . . . . . . . . . . Times Spotted 194 | . 29 6 42 36 50 1 12 14 4 Peak Tracking Total 9 | . 6 3 6 8 5 1 4 9 4 Tactical Retreats 7 | . . 1 1 . 3 . . 2 . Traps | -11 -10 -10 -9 -9 -8 -7 -7 -7 -7 ------- Run | Yrd Mat Min Mat Sto Mat Fac Low Low Dat Traps Triggered 10 | . 5 . 1 3 . 1 . . . Indirectly . | . . . . . . . . . . Trap Hack Attempts . | . . . . . . . . . . Triggered . | . . . . . . . . . . Disarmed 6 | . . . 6 . . . . . . Reprogrammed . | . . . . . . . . . . Reused . | . . . . . . . . . . Traps Extracted . | . . . . . . . . . . Installed . | . . . . . . . . . . Triggered . | . . . . . . . . . . Machines | -11 -10 -10 -9 -9 -8 -7 -7 -7 -7 ---------- Run | Yrd Mat Min Mat Sto Mat Fac Low Low Dat Machines Disabled 7 | . . 1 2 3 1 . . . . Max in Single Turn 1 | . . 1 1 1 1 . . . . Garrison Access 2 | . . . . 1 1 . . . . Machines Repaired . | . . . . . . . . . . Machines Dismantled . | . . . . . . . . . . Machines Sabotaged . | . . . . . . . . . . Overloaded Fab Kills . | . . . . . . . . . . Hacking | -11 -10 -10 -9 -9 -8 -7 -7 -7 -7 --------- Run | Yrd Mat Min Mat Sto Mat Fac Low Low Dat Machines Accessed 42 | . 7 . 8 12 11 . . . 4 Terminals 34 | . 7 . 8 10 9 . . . . Fabricators . | . . . . . . . . . . Repair Stations 2 | . . . . 1 1 . . . . Recycling Units . | . . . . . . . . . . Scanalyzers . | . . . . . . . . . . Garrison Access 2 | . . . . 1 1 . . . . Total Hacks 155 | . 23 . 27 43 32 . . . 30 Successful 105 | . 13 . 14 28 20 . . . 30 Failed 49 | . 10 . 12 15 12 . . . . Catastrophic 2 | . . . . 1 1 . . . . Database Lockouts 1 | . . . 1 . . . . . . Manual 76 | . 15 . 19 22 20 . . . . Terminals 104 | . 23 . 27 29 25 . . . . Fabricators . | . . . . . . . . . . Repair Stations 18 | . . . . 12 6 . . . . Recycling Units . | . . . . . . . . . . Scanalyzers . | . . . . . . . . . . Garrison Access 3 | . . . . 2 1 . . . . Terminal Hacks 52 | . 2 . 6 8 6 . . . 30 Record 11 | . . . . . . . . . 11 Part Schematic 12 | . . . 1 . . . . . 11 Robot Schematic 5 | . . . . . . . . . 5 Robot Analysis 1 | . . . . 1 . . . . . Prototype ID Bank 8 | . . . 3 1 1 . . . 3 Open Door 2 | . . . . 2 . . . . . Branch Access Points 1 | . 1 . . . . . . . . Alert Level 1 | . . . . 1 . . . . . Unreport Threat 6 | . 1 . . 2 3 . . . . Locate Traps 3 | . . . 1 1 1 . . . . Disarm Traps 1 | . . . 1 . . . . . . Hauler Manifests 1 | . . . . . 1 . . . . Fabricator Hacks . | . . . . . . . . . . Repair Station Hacks 16 | . . . . 11 5 . . . . Scan Component 9 | . . . . 6 3 . . . . Repair 7 | . . . . 5 2 . . . . Recycling Unit Hacks . | . . . . . . . . . . Scanalyzer . | . . . . . . . . . . Garrison Access Hacks 2 | . . . . 1 1 . . . . Seal Access 2 | . . . . 1 1 . . . . Unauthorized Hacks 35 | . 11 . 8 8 8 . . . . Terminals 35 | . 11 . 8 8 8 . . . . Botnet 14 | . 5 . 3 3 3 . . . . Skim 21 | . 6 . 5 5 5 . . . . Fabricators . | . . . . . . . . . . Repair Stations . | . . . . . . . . . . Recycling Units . | . . . . . . . . . . Scanalyzers . | . . . . . . . . . . Garrison Access . | . . . . . . . . . . Data Cores Recovered . | . . . . . . . . . . Used . | . . . . . . . . . . Hacking Detections 29 | . 6 . 6 9 8 . . . . Full Trace Events . | . . . . . . . . . . Feedback Events . | . . . . . . . . . . Feedback Blocked . | . . . . . . . . . . Robot Schematics Acquired 5 | . . . . . . . . . 5 Robots Built . | . . . . . . . . . . Authchips . | . . . . . . . . . . Time . | . . . . . . . . . . Total Robot Build Rating . | . . . . . . . . . . Part Schematics Acquired 12 | . . . 1 . . . . . 11 Parts Built . | . . . . . . . . . . Authchips . | . . . . . . . . . . Time . | . . . . . . . . . . Total Part Build Rating . | . . . . . . . . . . Parts Repaired 7 | . . . . 5 2 . . . . Time 243 | . . . . 160 83 . . . . Parts Recycled . | . . . . . . . . . . Recycled Matter . | . . . . . . . . . . Retrieved Matter . | . . . . . . . . . . Retrieved Components . | . . . . . . . . . . Parts Scanalyzed . | . . . . . . . . . . Part Schematics Acquired . | . . . . . . . . . . Parts Damaged . | . . . . . . . . . . Bothacking | -11 -10 -10 -9 -9 -8 -7 -7 -7 -7 ------------ Run | Yrd Mat Min Mat Sto Mat Fac Low Low Dat Used RIF Installer . | . . . . . . . . . . Robots Hacked . | . . . . . . . . . . Non-combat . | . . . . . . . . . . Combat . | . . . . . . . . . . Robot Hacks Applied . | . . . . . . . . . . Relay Couplers Released . | . . . . . . . . . . Fabnet Peak Effective % . | . . . . . . . . . . Robots Rewired 2 | . . . . . . . . 2 . Allies Hacked . | . . . . . . . . . . Hacks Repelled . | . . . . . . . . . . Allies | -11 -10 -10 -9 -9 -8 -7 -7 -7 -7 -------- Run | Yrd Mat Min Mat Sto Mat Fac Low Low Dat Total Allies 14 | . . . . 12 . . . 2 . Largest Group 12 | . . . . 12 3 . . 2 2 Highest-Rated Group 139 | . . . . 139 56 . . 36 36 Highest-Rated Ally 31 | . . . . 31 31 . . 20 20 Total Orders . | . . . . . . . . . . Ally Attacks 58 | . . . . 47 7 . . . 4 Total Damage 648 | . . . . 521 107 . . . 20 Kills 7 | . . . . 7 . . . . . Allies Corrupted . | . . . . . . . . . . Allies Melted . | . . . . . . . . . . Intel | -11 -10 -10 -9 -9 -8 -7 -7 -7 -7 ------- Run | Yrd Mat Min Mat Sto Mat Fac Low Low Dat Active Infowar (turns) 3711 | 18 293 . . . 2 225 1842 1331 . Sensors 3400 | . . . . . 2 225 1842 1331 . Structural 109 | . . . . . . . . 109 . Seismic 311 | 18 293 . . . . . . . . Robot Analysis Total 152 | . . . . 1 . . . . 151 Derelict Logs Recovered 4 | . . 2 . . . . 1 1 . Drone Launches . | . . . . . . . . . . Drone Recoveries . | . . . . . . . . . . Exploration | -11 -10 -10 -9 -9 -8 -7 -7 -7 -7 ------------- Run | Yrd Mat Min Mat Sto Mat Fac Low Low Dat Turns Passed 13992 | 90 1936 785 1794 1766 2736 233 1991 2472 189 Spaces Moved 5197 | 41 840 458 616 564 941 92 784 793 68 Core 28 | 4 . . . . . . . 24 . Treads 4972 | 37 840 458 616 564 941 92 784 640 . Legs . | . . . . . . . . . . Wheels 197 | . . . . . . . . 129 68 Hover . | . . . . . . . . . . Flight . | . . . . . . . . . . Fastest Speed 50 | 50 160 160 160 240 240 240 240 230 230 Average Speed 231 | 149 197 160 234 240 240 240 240 285 230 Slowest Speed 1800 | 160 320 160 240 240 240 240 320 1800 245 Overloaded Moves . | . . . . . . . . . . Propulsion Burnouts . | . . . . . . . . . . Robots Hopped . | . . . . . . . . . . Potential Cave-ins . | . . . . . . . . . . Cave-ins Triggered . | . . . . . . . . . . Exploration Rate (%) 69 | 4 97 99 72 91 77 4 83 90 76 Regions Visited 9 Branch Regions 5 Pre-discovered Areas 32 | . . 1 2 3 3 . . . 23 Known Exits Taken 8 | . 1 1 1 1 1 1 1 1 . Unknown Exits Taken 1 | 1 . . . . . . . . . Scrap Searched 6 | . . 2 . . . . 1 3 . Spaces Dug 5 | . . . 1 1 2 . 1 . . Terrain Destroyed 118 | . . . 1 35 9 . 47 20 6 Melee 5 | . . . 1 1 2 . 1 . . Projectile . | . . . . . . . . . . AOE 113 | . . . . 34 7 . 46 20 6 Terrain Rammed . | . . . . . . . . . . Walls Destroyed . | . . . . . . . . . . Machines Disabled . | . . . . . . . . . . Actions | -11 -10 -10 -9 -9 -8 -7 -7 -7 -7 --------- Run | Yrd Mat Min Mat Sto Mat Fac Low Low Dat Total 6366 | 55 982 490 816 846 1218 100 850 921 88 Wait 370 | . 8 10 45 148 118 . 10 30 1 Move 5188 | 40 839 457 615 563 940 91 783 792 68 Hop . | . . . . . . . . . . Pick Up 84 | 1 18 2 20 12 14 . 7 10 . Fast Attach 41 | 7 8 . 4 12 6 . 3 1 . Attach 40 | . . . 7 1 8 2 6 8 8 Detach 6 | . 1 . 1 1 1 . 2 . . Swap 86 | 1 17 1 15 13 8 3 14 11 3 Drop 67 | . 15 3 13 19 14 . 2 1 . Fire 436 | 5 74 13 92 72 101 2 22 47 8 Melee 12 | . . . 3 3 5 . 1 . . Ram . | . . . . . . . . . . Kick . | . . . . . . . . . . Crush 14 | 1 2 4 1 2 3 . . 1 . Escape Stasis 2 | . . . . . . 2 . . . Rewire 20 | . . . . . . . . 20 . Trap . | . . . . . . . . . . Miscellaneous . | . . . . . . . . . . Route ------- -11/Scrapyard -10/Materials (discovered 5 exits: *Mat x3 / *Min / *Sub) -10/Mines (discovered 4 exits: *Mat x2 / *Exi / *Sub) -9/Materials (discovered 7 exits: *Mat x3 / [*Min x2] / *Sto x2) -9/Storage (discovered 2 exits: *Mat / Rec) -8/Materials (discovered 3 exits: *Fac x3) -7/Factory (discovered 6 exits: Fac x4 / *Low x2) -7/Lower Caves -7/Lower Caves (discovered 2 exits: *Fac / *Dat) -7/Data Miner (discovered 1 exit: [*Pro]) History --------- Turn | Location | Event 2 | -11/Scrapyard | Met Revision 17 22 | -11/Scrapyard | Discovered new exit (range 15) 91 | -11/Scrapyard | Entered Materials 201 | -10/Materials | Identified exit to Mines 212 | -10/Materials | Discovered new exit (range 13) 342 | -10/Materials | Build established: Mutant 409 | -10/Materials | Discovered new exit (range 13) 752 | -10/Materials | Discovered new exit (range 4) 847 | -10/Materials | Build established: Scavenger-Mutant 1107 | -10/Materials | Identified exit to Subcaves 1139 | -10/Materials | Learned Storage stockpile data 1179 | -10/Materials | Learned Storage stockpile data 1184 | -10/Materials | Loaded intel: 24 trap records 1202 | -10/Materials | Learned location of 2 exits from Mines 1219 | -10/Materials | Build established: Mutant 2027 | -10/Materials | Entered Mines 2028 | -10/Mines | Identified exit to Materials 2029 | -10/Mines | Identified exit to Exiles 2413 | -10/Mines | Deemed a non-threat by the Exiles lab entrance 2490 | -10/Mines | Learned location of Storage (-9) 2812 | -10/Mines | Entered Materials 2812 | -9/Materials | Evolved 2 slots: Propulsion x2 2813 | -9/Materials | Identified exit to Storage 3159 | -9/Materials | Build established: Scavenger-Mutant 3189 | -9/Materials | Destroyed 7 combat bots 3193 | -9/Materials | Lost 3 parts (1n2u) 3304 | -9/Materials | Discovered new exit (range 14) 3609 | -9/Materials | Discovered exit to Storage (range 8) 3709 | -9/Materials | Discovered new exit (range 4) 3763 | -9/Materials | Build established: Mutant 3763 | -9/Materials | Discovered new exit (range 12) 3903 | -9/Materials | Discovered new exit (range 8) 4099 | -9/Materials | Central database locked down 4188 | -9/Materials | Identified exit to Materials 4276 | -9/Materials | Learned location of Zion (-6) 4291 | -9/Materials | Learned 4 Recycling zone layouts 4292 | -9/Materials | Learned location of 1 exit from Storage 4606 | -9/Materials | Entered Storage 4607 | -9/Storage | Identified exit to Recycling 5273 | -9/Storage | Repaired Med. Armor Plating 5310 | -9/Storage | Repaired Imp. Treads 5325 | -9/Storage | Learned Materials stockpile data 5344 | -9/Storage | Repaired Imp. Treads 5355 | -9/Storage | Learned location of Mines (-9) 5376 | -9/Storage | Learned location of 3 exits from Materials 5377 | -9/Storage | Repaired Autogun 5387 | -9/Storage | Learned Materials trap positions 5411 | -9/Storage | Repaired Autogun 5416 | -9/Storage | Learned Materials stockpile data 5443 | -9/Storage | Learned location of Recycling (-9) 5496 | -9/Storage | Met a pair of Derelict thieves 5699 | -9/Storage | Assisted by bots powering up and referring to "LRC-V3" 5958 | -9/Storage | Lost 7 allies 6372 | -9/Storage | Entered Materials 6372 | -8/Materials | Accompanied by 3 allies 6372 | -8/Materials | Evolved 2 slots: Utility x2 6373 | -8/Materials | Identified exit to Factory 6374 | -8/Materials | Loaded intel: 18 trap records 6721 | -8/Materials | Repaired Imp. Assault Rifle 6754 | -8/Materials | Repaired Imp. Treads 8540 | -8/Materials | Learned location of Extension (-6) 8650 | -8/Materials | Learned 4 Recycling zone layouts 8670 | -8/Materials | Learned 12 Factory zone layouts 8709 | -8/Materials | Learned Factory stockpile data 8745 | -8/Materials | Learned 4 Recycling zone layouts 8791 | -8/Materials | Learned location of 3 exits from Factory 9108 | -8/Materials | Entered Factory 9108 | -7/Factory | Evolved 2 slots: Utility x1, Weapon x1 9109 | -7/Factory | Identified exit to Factory 9109 | -7/Factory | Identified exit to Lower Caves 9341 | -7/Factory | Entered Lower Caves 9412 | -7/Lower Caves | Build established: Skirmisher 10456 | -7/Lower Caves | Learned Factory terminal intel 10612 | -7/Lower Caves | Found Alien Artifact 10612 | -7/Lower Caves | Identified Core Expander 10612 | -7/Lower Caves | Installed Core Expander, added new Utility slot 11153 | -7/Lower Caves | Build established: Gunner 11221 | -7/Lower Caves | Discovered new exit (range 10) 11256 | -7/Lower Caves | Identified exit to Lower Caves 11332 | -7/Lower Caves | Entered another Lower Caves area 11444 | -7/Lower Caves | Discovered exit to Factory (range 9) 11873 | -7/Lower Caves | Encountered a Warlord checkpoint 12379 | -7/Lower Caves | Found DCF Scrap (12 items) 12481 | -7/Lower Caves | Attracted the attention of an 0b10 checkpoint 12565 | -7/Lower Caves | Spotted B-75 Beast 12629 | -7/Lower Caves | Learned Factory security intel 12929 | -7/Lower Caves | Attracted the attention of an 0b10 outpost 12974 | -7/Lower Caves | Core integrity fell below 50% 12996 | -7/Lower Caves | Lost 6 parts (3n2u1w) 13637 | -7/Lower Caves | Discovered new exit (range 8) 13690 | -7/Lower Caves | Identified exit to Data Miner 13804 | -7/Lower Caves | Entered Data Miner 13804 | -7/Data Miner | Accompanied by 2 allies 13804 | -7/Data Miner | Discovered new exit (range 6) 13848 | -7/Data Miner | Met Data Miner 13910 | -7/Data Miner | Learned location of Section 7 (-3) 13910 | -7/Data Miner | Acquired the access code to Warlord's prototype stash 13933 | -7/Data Miner | Received God Mode back door access code from Data Miner 13951 | -7/Data Miner | Interfaced with the Data Conduit 13982 | -7/Data Miner | Core integrity fell below 20% 13993 | -7/Data Miner | Destroyed by Enhanced Grunt with Neutron Cannon Last Messages --------------- [Achievement: Unlimited Data] 13965_ Trooper 4a destroyed. 13969_ Grenade Launcher destroyed. 13969_ Gladiator 4a destroyed. 13969_ Hvy. Battle Rifle destroyed. 13970_ Imp. Medium Armor Plating destroyed. 13971_ Imp. Light Armor Plating destroyed. 13972_ Imp. Grenade Launcher destroyed. 13975_ Wheel destroyed. 13975_ Hrd. Light Armor Plating destroyed. 13976_ Grenade Launcher destroyed. 13979_ Hvy. Ion Engine destroyed. 13983_ The unstable cave ceiling collapses. 13985_ Minigun destroyed. 13985_ Reactive Plating destroyed. 13988_ Enhanced Grunt suffers critical hit (Destroy). 13988_ Destroyed Neutron Cannon. 13988_ Enhanced Grunt destroyed. 13988_ Minigun destroyed. 13992_ Imp. Targeting Computer destroyed. Map ----- +----------------------------------------------------+ | | | | | | | | | | | | | | | | | | | | | | | | | | | | | | | | | | | ????????????????????????????????????? | | ????????????????????????????????????? | | ????????????????????????????????????? | | ????????????????????????????????????? | | ????????????????????????????????????? | | ??????############# ######?????????## | | ?????"""""""""" # #????????## | | ????""""" g "########## | | ????""""""""@ % | | ????"""" % g g | | ???"""""" %= | | ???"""""" | | ???""""""" | | ????"""""" """"""""""""" | | ????""""""" """"########### | | ????""""""" """""###?????????? | | ?????"""""""" "#####???????????? | | ??????######"## "#???????????????? | | ???????????#"### "#???????????????? | | ???????????#"### "#???????????????? | | ???????????#"## "#???????????????? | | ???????????#?## "#???????????????? | | ?????????????# "#???????????????? | | ?????????????### "#???????????????? | | ???????????????# "##??????????????? | | ??????????????## ""#??????????????? | | ???????????#?## ""#??????????????? | | ??????????##"#"X ""#??????????????? | | ??????????""""" "####???????????? | | ??????????""""" X"""""???????????? | | ??????????##"#"X "##"#???????????? | | ???????????#?## X""""#???????????? | | ??????????????## "##"#???????????? | +----------------------------------------------------+ Best States ------------- Heat Dissipation 42 Energy Generation 14 Energy Capacity 280 Matter Stores 300 Matter Capacity 300 Sight Range 16 Robot Scan Range 15 Terrain Scan Density 10 Armor Coverage 450 Resistance: KI 20 Evasion (%) 40 Targeting Accuracy 6 Target Analysis 5 Recoil Reduction 4 Item Schematics ----------------- Huge Storage Unit | -9/Materials | Hacked Combat Drone Bay | -7/Data Miner | Free Lgt. Regenerative Plating | -7/Data Miner | Free Biomechanical Wings | -7/Data Miner | Free Gravity Neutralizer | -7/Data Miner | Free Imp. Lightning Gun | -7/Data Miner | Free Gyrokinetic Inverter | -7/Data Miner | Free Imp. Weapon Cycler | -7/Data Miner | Free Lrn. Proton Cannon | -7/Data Miner | Free Mic. Fission Core | -7/Data Miner | Free Lrn. Missile Launcher | -7/Data Miner | Free Adv. Medium Treads | -7/Data Miner | Free Robot Schematics ------------------ X-67 Chaingunner | -7/Data Miner | Free G-50 Soldier | -7/Data Miner | Free X-57 Shotgunner | -7/Data Miner | Free A-15 Conveyor | -7/Data Miner | Free H-66 Slayer | -7/Data Miner | Free Fabricated ------------ Nothing Repaired ---------- Med. Armor Plating | 1% | -9/Storage Imp. Treads | 30% | -9/Storage Imp. Treads | 54% | -9/Storage Autogun | 43% | -9/Storage Autogun | 60% | -9/Storage Imp. Assault Rifle | 19% | -8/Materials Imp. Treads | 20% | -8/Materials Alien Tech Used ----------------- Core Expander Achievements -------------- Unlimited Data Challenges ------------ None Game ------ Seed TeleporterInertialPurifier Manual? 0 Play Time 01:33:21 Cumulative 242.5 hours Start 2025.06.05 @ 17:57:07 End 2025.06.05 @ 20:40:46 Sessions 1 Manual Loads 0 Difficulty Rogue Special Mode None Game No. 170 Rogue 170 Adventurer 0 Explorer 0 Win Type - Total 9 Types 7/0/1/1/0/0/0/0/0/0 Lore% 57 Gallery% 60 Achievement% 61 Wizard Run 0 Options --------- Layout 0 ASCII 0 Keyboard 1 Movement Numpad Keybinds 0 Fullscreen 2 Font 24/Smallcaps Map View 76x50 Zoom Use 0% Tactical HUD 1 Map Filters NONE Filters NONE Steam 1 RUN: 2a196584-40cc-4a1b-a2ba-4ba7d1b1c077